Cogmind - Beta 16 @@@ ROGUE MODE // 2025.10.31 @ 02:43:37 Player: Not_Jesus8 Result: Core destroyed Performance ------------- Evolutions (5) 2500 Regions Visited (11) 2200 Robots Destroyed (2) 10 Value Destroyed (150) 150 Prototype IDs (2) 40 Alien Tech Used (0) 0 Bonus (1387) 1387 TOTAL SCORE: 6287 Bonus ------- Follower Combat Kills 1087 Registered with UFD 300 Cogmind --------- Core Integrity 0/1000 Matter 228/300 Energy 100/100 System Corruption 0% Temperature Critical (832) Movement Hovering (716) Ox8 Location -5/Factory Parts ------- > --- POWER (1) -------- Backup Power III > --- PROPULSION (2) --- Backup Propulsion III Backup Propulsion III > --- UTILITY (12) ----- Damper Plating Damper Plating Damper Plating > --- WEAPON (2) ------- Heavy Hammer Power Sword > --- INVENTORY (5) ---- Advanced Terrain Scanner Peak State ------------ > --- POWER ------------ Backup Power III > --- PROPULSION ------- Heavy Treads > --- UTILITY ---------- Damper Plating Damper Plating Damper Plating > --- WEAPON ----------- Heavy Hammer Power Sword > --- INVENTORY -------- Advanced Terrain Scanner [Rating: 94] Favorites ----------- Power Backup Power III Engine Backup Power III Propulsion Heavy Treads Treads Heavy Treads Hover Unit Backup Propulsion III Utility Damper Plating Device Long-range Terrain Scanner Processor A0-MCA's Component Scanner Protection Damper Plating Weapon Backup Laser III Energy Gun Backup Laser III Impact Weapon Heavy Hammer Slashing Weapon Power Sword Build | -11 -10 -10 -9 -8 -8 -8 -8 -6 -6 -6 -5 ------- Run | Yrd Mat Min Mat Mat Sto Rec Scr Fac Was Fac Fac Slots Evolved 10 | . . . 2 2 . . . 4 . . 2 Power . | . . . . . . . . . . . . Propulsion . | . . . . . . . . . . . . Utility 10 | . . . 2 2 . . . 4 . . 2 Weapon . | . . . . . . . . . . . . Parts Attached 10 | . . . . . 1 . . . 5 3 1 Power . | . . . . . . . . . . . . Engine . | . . . . . . . . . . . . Core . | . . . . . . . . . . . . Reactor . | . . . . . . . . . . . . Propulsion 1 | . . . . . . . . . 1 . . Treads 1 | . . . . . . . . . 1 . . Leg . | . . . . . . . . . . . . Wheel . | . . . . . . . . . . . . Hover . | . . . . . . . . . . . . Flight . | . . . . . . . . . . . . Utility 6 | . . . . . 1 . . . 4 . 1 Device 1 | . . . . . . . . . 1 . . Storage . | . . . . . . . . . . . . Processor 2 | . . . . . 1 . . . 1 . . Hackware . | . . . . . . . . . . . . Protection 3 | . . . . . . . . . 2 . 1 Artifact . | . . . . . . . . . . . . Weapon 3 | . . . . . . . . . . 3 . Energy Gun . | . . . . . . . . . . . . Energy Cannon . | . . . . . . . . . . . . Ballistic Gun . | . . . . . . . . . . . . Ballistic Cannon . | . . . . . . . . . . . . Launcher . | . . . . . . . . . . . . Special Weapon . | . . . . . . . . . . . . Impact Weapon 2 | . . . . . . . . . . 2 . Slashing Weapon 1 | . . . . . . . . . . 1 . Piercing Weapon . | . . . . . . . . . . . . Special Melee Weapon . | . . . . . . . . . . . . Unidentified Prototypes . | . . . . . . . . . . . . Corrupted Parts 1 | . . . . . . . . . . 1 . System Corruption 3 | . . . . . . . . . . 3 . Parts Lost . | . . . . . . . . . . . . Power . | . . . . . . . . . . . . Propulsion . | . . . . . . . . . . . . Utility . | . . . . . . . . . . . . Weapon . | . . . . . . . . . . . . Highest Loss Streak . | . . . . . . . . . . . . To Critical Strikes . | . . . . . . . . . . . . Average Backups 1 | . . . . . . . . 2 3 2 1 Power . | . . . . . . . . . . . . Propulsion . | . . . . . . . . . . . . Utility 1 | . . . . . . . . 2 3 2 1 Weapon . | . . . . . . . . . . . . Tool/Special . | . . . . . . . . . . . . Unused Backups 3 | . . . . . . . . . 2 . 1 Power . | . . . . . . . . . . . . Propulsion . | . . . . . . . . . . . . Utility 3 | . . . . . . . . . 2 . 1 Weapon . | . . . . . . . . . . . . Tool/Special . | . . . . . . . . . . . . Average Slot Usage (%) 26 | . . . . . 4 9 6 . 29 52 44 Engine 2 | . . . . . . . . . 3 6 5 Treads 2 | . . . . . . . . . 3 6 1 Device 2 | . . . . . . . . . 5 6 . Processor 4 | . . . . . 4 9 6 . 2 6 . Protection 6 | . . . . . . . . . 6 13 16 Energy Gun 3 | . . . . . . . . . 6 7 . Impact Weapon 1 | . . . . . . . . . . 3 5 Peak Build Rating 94 | . . . . . 2 2 2 2 87 88 94 Average Rating 41 | . . . . . 1 2 1 1 51 86 88 On Entrance 15 | . . . . . . 2 2 . 2 87 88 Avg Prop Armor Cover (%) . | . . . . . . . . . . . . Naked Turns 548 | . 91 23 97 18 51 . 135 122 11 . . Heaviest Build 143 | . . . . . . . . . 98 100 143 Greatest Support 70 | 3 3 3 3 3 3 3 3 3 70 70 70 Greatest Overweight (x) 47 | . . . . . . . . . 1 1 47 Average Overweight (x) . | . . . . . . . . . . 1 7 Largest Inventory Capacity 5 | 5 5 5 5 5 5 5 5 5 5 5 5 Average Capacity 5 | 5 5 5 5 5 5 5 5 5 5 5 5 Most Carried 5 | . . . . . . . 1 4 5 5 5 Average Carried 2 | . . . . . . . . 2 4 5 1 Final Capacity 5 | 5 5 5 5 5 5 5 5 5 5 5 5 Final Carried 5 | . . . . . . . 1 4 5 5 1 Class Distribution -------------------- 96% | Mutant Dominant Class ---------------- Mutant | -10/Materials Mutant | -10/Mines Mutant | -9/Materials Mutant | -8/Materials Commander-Mutant | -8/Storage Mutant | -8/Recycling Mutant | -8/Scraptown Mutant | -6/Factory Mutant | -6/Waste Mutant | -6/Factory Mutant | -5/Factory Resources | -11 -10 -10 -9 -8 -8 -8 -8 -6 -6 -6 -5 ----------- Run | Yrd Mat Min Mat Mat Sto Rec Scr Fac Was Fac Fac Matter Collected 348 | 80 16 . . . 55 . . 46 40 30 81 Remotely . | . . . . . . . . . . . . Salvage Created 139 | . 16 . . . . . . . . . 123 Parts 5 | . 2 . . . . . . . . . 3 Haulers Intercepted . | . . . . . . . . . . . . Recyclers Shooed . | . . . . . . . . . . . . Parts Field Recycled . | . . . . . . . . . . . . Retrieved Matter . | . . . . . . . . . . . . Parts Self-Destructed . | . . . . . . . . . . . . Prevented . | . . . . . . . . . . . . Parts Restored . | . . . . . . . . . . . . Kills | -11 -10 -10 -9 -8 -8 -8 -8 -6 -6 -6 -5 ------- Run | Yrd Mat Min Mat Mat Sto Rec Scr Fac Was Fac Fac Combat Hostiles Destroyed 1 | . 1 . . . . . . . . . . Melee 1 | . 1 . . . . . . . . . . Classes Destroyed 2 | . 1 . . . . . . . . . 1 Recycler 1 | . . . . . . . . . . . 1 Swarmer 1 | . 1 . . . . . . . . . . Best Kill Streak 1 | . 1 . . . . . . . . . 1 Combat Bots Only 1 | . 1 . . . . . . . . . . Max Kills in Single Turn 1 | . 1 . . . . . . . . . 1 Gunslinging . | . . . . . . . . . . . . Exploded . | . . . . . . . . . . . . Melee 1 | . 1 . . . . . . . . . . Uniques/NPCs Destroyed . | . . . . . . . . . . . . Combat | -11 -10 -10 -9 -8 -8 -8 -8 -6 -6 -6 -5 -------- Run | Yrd Mat Min Mat Mat Sto Rec Scr Fac Was Fac Fac Hostile Shots Fired 108 | . 13 . 21 6 35 6 . 12 . 15 . Missed 41 | . 2 . 4 5 17 4 . 7 . 2 . Hits 67 | . 11 . 17 1 18 2 . 5 . 13 . Projectile 67 | . 11 . 17 1 18 2 . 5 . 13 . Critical Strikes 3 | . . . . . 2 . . . . 1 . Damage Taken 2130 | . 146 . 194 20 280 30 6 77 25 312 1040 Core 1791 | . 146 . 194 20 278 30 6 77 . . 1040 Absorbed by Shields . | . . . . . . . . . . . . Regen/Repaired (Parts) 82 | . . . . . . . . . 10 . 72 Core Remaining (%) 64 | 100 . 41 51 . . . 39 . . 90 . Volleys Fired . | . . . . . . . . . . . . Largest . | . . . . . . . . . . . . Hottest . | . . . . . . . . . . . . Shots Fired . | . . . . . . . . . . . . Gun . | . . . . . . . . . . . . Cannon . | . . . . . . . . . . . . Launcher . | . . . . . . . . . . . . Special . | . . . . . . . . . . . . Kinetic . | . . . . . . . . . . . . Thermal . | . . . . . . . . . . . . Explosive . | . . . . . . . . . . . . Electromagnetic . | . . . . . . . . . . . . Robot Hit Streak . | . . . . . . . . . . . . Robot Miss Streak . | . . . . . . . . . . . . Penetration Max . | . . . . . . . . . . . . Secondary Targets . | . . . . . . . . . . . . Shots Hit Robots 1 | . . . . . . . . . . . 1 Core Hits 3 | . 1 . . . 1 . . . . . 1 Critical Kills . | . . . . . . . . . . . . Critical Parts Destroyed . | . . . . . . . . . . . . Critical Strikes . | . . . . . . . . . . . . Melee Attacks 5 | . . . . . . . . . . 4 1 Impact 2 | . . . . . . . . . . 2 . Slashing 3 | . . . . . . . . . . 2 1 Piercing . | . . . . . . . . . . . . Sneak Attacks 1 | . . . . . . . . . . . 1 Combat Hostiles . | . . . . . . . . . . . . Follow-up Attacks . | . . . . . . . . . . . . Damage Inflicted 132 | . 11 . 14 . 27 . 6 6 . . 68 Guns . | . . . . . . . . . . . . Cannons . | . . . . . . . . . . . . Explosions . | . . . . . . . . . . . . Melee 68 | . . . . . . . . . . . 68 Ramming 64 | . 11 . 14 . 27 . 6 6 . . . Kinetic . | . . . . . . . . . . . . Thermal . | . . . . . . . . . . . . Explosive . | . . . . . . . . . . . . Electromagnetic . | . . . . . . . . . . . . Impact . | . . . . . . . . . . . . Slashing 68 | . . . . . . . . . . . 68 Piercing . | . . . . . . . . . . . . Highest Corruption 4 | . 2 2 . 1 1 1 2 1 1 4 . Average Corruption 1 | . 2 2 . 1 1 1 1 1 1 2 . Corruption Purged . | . . . . . . . . . . . . Corruption Blocked . | . . . . . . . . . . . . Effects 22 | . . . . . 1 1 4 . 2 14 . Message Errors 4 | . . . . . . . 1 . 1 2 . Matter Fused 10 | . . . . . . . 1 . 1 8 . Heat Flow Errors 1 | . . . . . . . . . . 1 . Energy Discharges 2 | . . . . . . 1 1 . . . . Data Loss (minor) 1 | . . . . . . . . . . 1 . Data Loss (major) 4 | . . . . . 1 . 1 . . 2 . Overload Shots . | . . . . . . . . . . . . Overflow Damage . | . . . . . . . . . . . . Projectiles . | . . . . . . . . . . . . Explosions . | . . . . . . . . . . . . Melee . | . . . . . . . . . . . . Knockbacks . | . . . . . . . . . . . . Impact . | . . . . . . . . . . . . Kinetic . | . . . . . . . . . . . . Secondary . | . . . . . . . . . . . . Self-Inflicted Damage 36 | . 5 . 7 . 12 . 6 6 . . . Shots . | . . . . . . . . . . . . Rammed 7 | . 1 . 1 . 5 . . . . . . Targets Rammed 7 | . 1 . 1 . 5 . . . . . . Kicked . | . . . . . . . . . . . . Crushed . | . . . . . . . . . . . . Highest Temperature 832 | . . . . . . . . . . 262 832 Average Temperature 202 | . . . . . . . . . . 104 443 Received Heat Transfer 415 | . 42 . 102 . 108 9 . 15 . 139 . Effects 42 | . . . . . . . . . . 3 39 Shutdowns 6 | . . . . . . . . . . . 6 Energy Bleed 4 | . . . . . . . . . . . 4 Interference 4 | . . . . . . . . . . 3 1 Matter Decay 1 | . . . . . . . . . . . 1 Short Circuit 1 | . . . . . . . . . . . 1 Damage (minor) 2 | . . . . . . . . . . . 2 Damage (major) 17 | . . . . . . . . . . . 17 Damage (core) 7 | . . . . . . . . . . . 7 Siege Activations . | . . . . . . . . . . . . Martial Activations . | . . . . . . . . . . . . Shielding Activations . | . . . . . . . . . . . . Robots Disrupted . | . . . . . . . . . . . . Combat Hostiles . | . . . . . . . . . . . . Robots Corrupted . | . . . . . . . . . . . . Combat Hostiles . | . . . . . . . . . . . . Parts Fried . | . . . . . . . . . . . . Impact Corruptions . | . . . . . . . . . . . . Robots Melted . | . . . . . . . . . . . . Combat Hostiles . | . . . . . . . . . . . . Parts Melted . | . . . . . . . . . . . . Heat Transferred . | . . . . . . . . . . . . Parts Sabotaged . | . . . . . . . . . . . . Parts Stolen . | . . . . . . . . . . . . Parts Stripped . | . . . . . . . . . . . . Power Chain Reactions . | . . . . . . . . . . . . Alert | -11 -10 -10 -9 -8 -8 -8 -8 -6 -6 -6 -5 ------- Run | Yrd Mat Min Mat Mat Sto Rec Scr Fac Was Fac Fac Maximum Alert Level 3 | . . . . . 1 . . . . 3 1 Low Security (%) 70 | 100 100 100 100 100 66 100 . 100 100 52 . Level 1 7 | . . . . . 33 . . . . . 100 Level 2 11 | . . . . . . . . . . 24 . Level 3 9 | . . . . . . . . . . 21 . Level 4 . | . . . . . . . . . . . . Level 5 . | . . . . . . . . . . . . High Security . | . . . . . . . . . . . . Max Security . | . . . . . . . . . . . . Peak Influence 798 | . 55 21 17 6 348 135 . . 26 798 387 Initial 387 | . . 21 3 . 1 135 . . . . 387 Average 180 | . 7 19 2 2 113 110 . . 2 315 373 Influence Increases 1664 | . 83 . 14 6 397 9 . . 58 1090 7 Destroy 0b10 Robot/C 540 | . 20 . . . 180 . . . . 340 . Destroy 0b10 Robot/NC 35 | . . . . . . . . . . 30 5 Destroy Leader 112 | . . . . . 50 . . . . 62 . Allied During Kill 515 | . . . . . 133 . . . . 380 2 Successful Hack 66 | . 18 . 14 6 19 9 . . . . . Disable Machine 195 | . . . . . . . . . . 195 . Destroy Structure 141 | . . . . . . . . . 58 83 . Partial Spotted 15 | . . . . . 15 . . . . . . Lose Combat Pursuer 45 | . 45 . . . . . . . . . . Influence Decreases 1310 | . 28 44 25 . 55 273 84 . 58 300 443 Entered New Map 747 | . . 34 8 . 5 213 84 . . . 403 Time Decay 428 | . 28 10 17 . 50 60 . . 23 200 40 Lost Ally 135 | . . . . . . . . . 35 100 . Squads Dispatched 11 | . 3 . 3 1 2 . . . . 2 . Investigation 8 | . 3 . 2 1 2 . . . . . . Extermination 1 | . . . . . . . . . . 1 . Reinforcement 2 | . . . 1 . . . . . . 1 . Assault . | . . . . . . . . . . . . Garrison . | . . . . . . . . . . . . Intercept . | . . . . . . . . . . . . Searches Triggered . | . . . . . . . . . . . . Construction Impeded . | . . . . . . . . . . . . Haulers Reinforced 1 | . . . . . . . . . . 1 . Active Scanning Responses . | . . . . . . . . . . . . Cargo Convoy Interrupts . | . . . . . . . . . . . . Stealth | -11 -10 -10 -9 -8 -8 -8 -8 -6 -6 -6 -5 --------- Run | Yrd Mat Min Mat Mat Sto Rec Scr Fac Was Fac Fac Distress Signals 2 | . . . . . 1 . . . . 1 . Communications Jammed . | . . . . . . . . . . . . Distress Signals . | . . . . . . . . . . . . Times Spotted 55 | . 8 . 8 1 16 2 . 5 4 11 . Peak Tracking Total 9 | . 7 . 9 1 8 2 . 5 2 4 . Tactical Retreats 2 | . 2 . . . . . . . . . . Traps | -11 -10 -10 -9 -8 -8 -8 -8 -6 -6 -6 -5 ------- Run | Yrd Mat Min Mat Mat Sto Rec Scr Fac Was Fac Fac Traps Triggered 5 | . 2 . 1 . . . . 1 . 1 . Indirectly . | . . . . . . . . . . . . Trap Hack Attempts . | . . . . . . . . . . . . Triggered . | . . . . . . . . . . . . Disarmed . | . . . . . . . . . . . . Reprogrammed . | . . . . . . . . . . . . Reused . | . . . . . . . . . . . . Traps Extracted . | . . . . . . . . . . . . Installed . | . . . . . . . . . . . . Triggered . | . . . . . . . . . . . . Machines | -11 -10 -10 -9 -8 -8 -8 -8 -6 -6 -6 -5 ---------- Run | Yrd Mat Min Mat Mat Sto Rec Scr Fac Was Fac Fac Machines Disabled 13 | . . . . . . . . . . 13 . Max in Single Turn 1 | . . . . . . . . . . 1 . Machines Repaired . | . . . . . . . . . . . . Machines Dismantled . | . . . . . . . . . . . . Machines Sabotaged . | . . . . . . . . . . . . Overloaded Fab Kills . | . . . . . . . . . . . . Hacking | -11 -10 -10 -9 -8 -8 -8 -8 -6 -6 -6 -5 --------- Run | Yrd Mat Min Mat Mat Sto Rec Scr Fac Was Fac Fac Machines Accessed 13 | . 4 . 1 1 3 2 1 1 . . . Terminals 11 | . 4 . 1 1 3 2 . . . . . Fabricators 1 | . . . . . . . . 1 . . . Repair Stations . | . . . . . . . . . . . . Recycling Units . | . . . . . . . . . . . . Scanalyzers . | . . . . . . . . . . . . Garrison Access . | . . . . . . . . . . . . Total Hacks 57 | . 18 . 3 5 12 11 7 1 . . . Successful 26 | . 5 . 1 2 6 4 7 1 . . . Failed 31 | . 13 . 2 3 6 7 . . . . . Catastrophic 7 | . 3 . 1 . 2 1 . . . . . Database Lockouts . | . . . . . . . . . . . . Manual 50 | . 18 . 3 5 13 11 . . . . . Terminals 49 | . 18 . 3 5 12 11 . . . . . Fabricators 1 | . . . . . . . . 1 . . . Repair Stations . | . . . . . . . . . . . . Recycling Units . | . . . . . . . . . . . . Scanalyzers . | . . . . . . . . . . . . Garrison Access . | . . . . . . . . . . . . Terminal Hacks 15 | . 2 . . 1 3 2 7 . . . . Robot Analysis 7 | . . . . . . . 7 . . . . Branch Access Points 2 | . 1 . . . 1 . . . . . . Terminal Index 4 | . 1 . . 1 1 1 . . . . . Zone Layout 2 | . . . . . 1 1 . . . . . Fabricator Hacks 1 | . . . . . . . . 1 . . . Network Status 1 | . . . . . . . . 1 . . . Repair Station Hacks . | . . . . . . . . . . . . Recycling Unit Hacks . | . . . . . . . . . . . . Scanalyzer . | . . . . . . . . . . . . Garrison Access Hacks . | . . . . . . . . . . . . Unauthorized Hacks 10 | . 3 . 1 1 3 2 . . . . . Terminals 10 | . 3 . 1 1 3 2 . . . . . Botnet 10 | . 3 . 1 1 3 2 . . . . . Fabricators . | . . . . . . . . . . . . Repair Stations . | . . . . . . . . . . . . Recycling Units . | . . . . . . . . . . . . Scanalyzers . | . . . . . . . . . . . . Garrison Access . | . . . . . . . . . . . . Data Cores Recovered . | . . . . . . . . . . . . Used . | . . . . . . . . . . . . Hacking Detections 11 | . 4 . 1 1 3 2 . . . . . Full Trace Events 10 | . 4 . 1 1 3 1 . . . . . Feedback Events 1 | . . . . 1 . . . . . . . Corruption 1 | . . . . 1 . . . . . . . Feedback Blocked . | . . . . . . . . . . . . Robot Schematics Acquired . | . . . . . . . . . . . . Robots Built . | . . . . . . . . . . . . Authchips . | . . . . . . . . . . . . Time . | . . . . . . . . . . . . Total Robot Build Rating . | . . . . . . . . . . . . Part Schematics Acquired . | . . . . . . . . . . . . Parts Built . | . . . . . . . . . . . . Authchips . | . . . . . . . . . . . . Time . | . . . . . . . . . . . . Total Part Build Rating . | . . . . . . . . . . . . Part Studies Acquired . | . . . . . . . . . . . . Parts Repaired . | . . . . . . . . . . . . Time . | . . . . . . . . . . . . Parts Recycled . | . . . . . . . . . . . . Recycled Matter . | . . . . . . . . . . . . Retrieved Matter . | . . . . . . . . . . . . Retrieved Components . | . . . . . . . . . . . . Parts Scanalyzed . | . . . . . . . . . . . . Part Schematics Acquired . | . . . . . . . . . . . . Parts Damaged . | . . . . . . . . . . . . Bothacking | -11 -10 -10 -9 -8 -8 -8 -8 -6 -6 -6 -5 ------------ Run | Yrd Mat Min Mat Mat Sto Rec Scr Fac Was Fac Fac Used RIF Installer . | . . . . . . . . . . . . Robots Hacked . | . . . . . . . . . . . . Non-combat . | . . . . . . . . . . . . Combat . | . . . . . . . . . . . . Robot Hacks Applied . | . . . . . . . . . . . . Relay Couplers Released . | . . . . . . . . . . . . Fabnet Peak Effective % . | . . . . . . . . . . . . Robots Rewired 1 | . . . . . . . . 1 . . . Allies Hacked . | . . . . . . . . . . . . Hacks Repelled . | . . . . . . . . . . . . Allies | -11 -10 -10 -9 -8 -8 -8 -8 -6 -6 -6 -5 -------- Run | Yrd Mat Min Mat Mat Sto Rec Scr Fac Was Fac Fac Total Allies 32 | . . 2 . . 10 . . 1 19 . . Largest Group 19 | . . 2 . . 10 . . 1 19 14 5 Highest-Rated Group 702 | . . 45 . . 173 . . 29 702 542 191 Highest-Rated Ally 50 | . . 31 . . 29 . . 29 50 50 46 Total Orders . | . . . . . . . . . . . . Ally Attacks 277 | . . . . . 60 . . 4 110 103 . Total Damage 7382 | . . . . . 718 . . 57 2908 3699 . Kills 41 | . . . . . 10 . . . 6 25 . Allies Corrupted . | . . . . . . . . . . . . Allies Melted . | . . . . . . . . . . . . Intel | -11 -10 -10 -9 -8 -8 -8 -8 -6 -6 -6 -5 ------- Run | Yrd Mat Min Mat Mat Sto Rec Scr Fac Was Fac Fac Active Infowar (turns) 816 | . . . . . 36 9 328 . 247 196 . Optics 373 | . . . . . 36 9 328 . . . . Terrain 443 | . . . . . . . . . 247 196 . Robot Analysis Total 7 | . . . . . . . 7 . . . . Derelict Logs Recovered 1 | . . 1 . . . . . . . . . Drone Launches . | . . . . . . . . . . . . Drone Recoveries . | . . . . . . . . . . . . Exploration | -11 -10 -10 -9 -8 -8 -8 -8 -6 -6 -6 -5 ------------- Run | Yrd Mat Min Mat Mat Sto Rec Scr Fac Was Fac Fac Turns Passed 2209 | 11 91 23 97 18 109 129 464 122 258 792 95 Spaces Moved 2432 | 23 179 45 114 35 163 238 923 217 162 321 12 Core 2039 | 23 179 45 114 35 163 238 923 217 101 . 1 Treads 389 | . . . . . . . . . 61 321 7 Legs . | . . . . . . . . . . . . Wheels . | . . . . . . . . . . . . Hover 4 | . . . . . . . . . . . 4 Flight . | . . . . . . . . . . . . Fastest Speed 50 | 50 50 50 50 50 50 50 50 50 50 240 320 Average Speed 82 | 50 50 50 50 50 50 50 50 50 120 240 625 Slowest Speed 2400 | 50 50 50 50 50 50 50 50 50 240 240 2400 Overloaded Moves . | . . . . . . . . . . . . Propulsion Burnouts . | . . . . . . . . . . . . Robots Hopped . | . . . . . . . . . . . . Potential Cave-ins . | . . . . . . . . . . . . Cave-ins Triggered . | . . . . . . . . . . . . Exploration Rate (%) 25 | 3 43 17 18 3 27 39 56 5 80 13 1 Regions Visited 11 Branch Regions 4 Pre-discovered Areas . | . . . . . . . . . . . . Known Exits Taken 3 | . 1 . 1 . 1 . . . . . . Unknown Exits Taken 6 | 1 . 1 . 1 . 1 1 . . 1 . Scrap Searched . | . . . . . . . . . . . . Spaces Dug . | . . . . . . . . . . . . Terrain Destroyed . | . . . . . . . . . . . . Melee . | . . . . . . . . . . . . Projectile . | . . . . . . . . . . . . AOE . | . . . . . . . . . . . . Terrain Rammed 2 | . . . . . . . 1 1 . . . Walls Destroyed . | . . . . . . . . . . . . Machines Disabled . | . . . . . . . . . . . . Actions | -11 -10 -10 -9 -8 -8 -8 -8 -6 -6 -6 -5 --------- Run | Yrd Mat Min Mat Mat Sto Rec Scr Fac Was Fac Fac Total 2619 | 22 179 44 153 34 189 247 925 230 225 339 32 Wait 146 | . . . 39 . 21 10 . . 56 5 15 Move 2422 | 22 178 44 113 34 162 237 922 217 161 320 12 Hop . | . . . . . . . . . . . . Pick Up 5 | . . . . . . . 1 3 1 . . Fast Attach 8 | . . . . . 1 . . . 4 3 . Attach 2 | . . . . . . . . . 1 . 1 Detach 2 | . . . . . . . 1 . . . 1 Swap . | . . . . . . . . . . . . Drop 8 | . . . . . . . . . 2 4 2 Fire . | . . . . . . . . . . . . Melee 4 | . . . . . . . . . . 3 1 Ram 9 | . 1 . 1 . 5 . 1 1 . . . Kick . | . . . . . . . . . . . . Crush . | . . . . . . . . . . . . Escape Stasis 4 | . . . . . . . . . . 4 . Rewire 9 | . . . . . . . . 9 . . . Trap . | . . . . . . . . . . . . Miscellaneous . | . . . . . . . . . . . . Route ------- -11/Scrapyard -10/Materials (discovered 2 exits: *Mat / *Min) -10/Mines -9/Materials -8/Materials -8/Storage -8/Recycling -8/Scraptown -6/Factory -6/Waste -6/Factory -5/Factory History --------- Turn | Location | Event 3 | -11/Scrapyard | Discovered new exit (range 16) 12 | -11/Scrapyard | Entered Materials 68 | -10/Materials | Identified exit to Mines 79 | -10/Materials | Discovered new exit (range 10) 95 | -10/Materials | Core integrity fell below 50% 103 | -10/Materials | Entered Mines 104 | -10/Mines | Assembled infested the area 106 | -10/Mines | Met a Derelict bent on vengeance 112 | -10/Mines | Learned location of 1 exit from Materials 121 | -10/Mines | Discovered new exit (range 8) 126 | -10/Mines | Entered Materials 126 | -9/Materials | Evolved 2 slots: Utility x2 127 | -9/Materials | Identified exit to Materials 223 | -9/Materials | Entered another Materials area 223 | -8/Materials | Evolved 2 slots: Utility x2 223 | -8/Materials | Discovered new exit (range 7) 241 | -8/Materials | Entered Storage 295 | -8/Storage | Identified exit to Recycling 300 | -8/Storage | Assisted by bots powering up and referring to "LRC-V3" 346 | -8/Storage | Core integrity fell below 50% 348 | -8/Storage | Used back door to open Recycling access 350 | -8/Storage | Entered Recycling 467 | -8/Recycling | Scanned before Scraplab entrance 474 | -8/Recycling | Entered Scraplab 478 | -8/Recycling | Discovered new exit (range 3) 479 | -8/Recycling | Entered Scraptown 516 | -8/Scraptown | Visited UFD Registry 516 | -8/Scraptown | Registered with UFD as "Dualrunner" 529 | -8/Scraptown | Visited A0-MCA Data Center 532 | -8/Scraptown | Given a B- rating by A0-MCA 536 | -8/Scraptown | Found A0-MCA's Component Scanner 547 | -8/Scraptown | Visited Scrap Suit Storage 556 | -8/Scraptown | Visited Botcube Research 568 | -8/Scraptown | Visited Derelict Rescue Squad 575 | -8/Scraptown | Visited Analyses Database 586 | -8/Scraptown | Visited Observation Area 596 | -8/Scraptown | Visited Curators Association 636 | -8/Scraptown | Build established: Mutant 639 | -8/Scraptown | Visited Junk Repository 656 | -8/Scraptown | Visited Chapter 10 671 | -8/Scraptown | Visited Modified Component R&D 846 | -8/Scraptown | Visited Fellowship of the Rings 852 | -8/Scraptown | Visited Comm Corps 872 | -8/Scraptown | Visited Symbiants 884 | -8/Scraptown | Visited Shadow of the Wyrm 890 | -8/Scraptown | Visited Spacefarers 896 | -8/Scraptown | Visited Awakened 940 | -8/Scraptown | Discovered new exit (range 5) 943 | -8/Scraptown | Entered Factory 943 | -6/Factory | Evolved 4 slots: Utility x4 1065 | -6/Factory | Sucked down chute 1065 | -6/Factory | Entered Waste 1070 | -6/Waste | Spotted C-40 Crusher 1134 | -6/Waste | Spotted C-40 Crusher 1149 | -6/Waste | Warlord forces began an assault 1161 | -6/Waste | Allies destroyed C-40 Crusher 1165 | -6/Waste | Allies destroyed C-40 Crusher 1175 | -6/Waste | Spotted C-40 Crusher 1177 | -6/Waste | Found Damper Plating 1180 | -6/Waste | Found Damper Plating 1188 | -6/Waste | Allies destroyed C-40 Crusher 1202 | -6/Waste | Spotted C-40 Crusher 1204 | -6/Waste | Spotted C-40 Crusher 1205 | -6/Waste | Found Damper Plating 1205 | -6/Waste | Allies destroyed C-40 Crusher 1211 | -6/Waste | Allies destroyed C-40 Crusher 1239 | -6/Waste | Lost 3 allies 1287 | -6/Waste | Discovered new exit (range 15) 1323 | -6/Waste | Entered Factory 1323 | -6/Factory | Accompanied by 14 allies 1844 | -6/Factory | Lost 3 allies 1955 | -6/Factory | Lost 4 allies 2093 | -6/Factory | Discovered new exit (range 9) 2115 | -6/Factory | Entered another Factory area 2115 | -5/Factory | Accompanied by 5 allies 2115 | -5/Factory | Evolved 2 slots: Utility x2 2202 | -5/Factory | Core integrity fell below 50% 2210 | -5/Factory | Core integrity fell below 20% 2211 | -5/Factory | Core destroyed Last Messages --------------- damaged (-7). 02203_ Overheating: Power Sword damaged (-9). 02203_ Overheating: Damper Plating damaged (-360). 02203_ EG-4QV(m) repairs Power Sword. 02205_ Overheating: Core damaged (-170). 02205_ EG-4QV(m) repairs Hvy. Hammer. 02206_ Overheating: Backup Propulsion III damaged (-3). 02206_ Overheating: Damper Plating damaged (-28). 02206_ Overheating: Backup Propulsion III damaged (-12). 02207_ Overheating: Hvy. Hammer damaged (-29). 02207_ Overheating: Backup Propulsion III damaged (-1). 02209_ 9O-WXF(m) repairs Hvy. Hammer. 02210_ Overheating: Core damaged (-160). 02211_ Power failure, Backup Power III shutdown. 02211_ Overheating: Core damaged (-110). Map ----- +----------------------------------------------------+ | | | | | | | | | | | | | ???????????????????????????????????????? | | ???????????????????????????????????????? | | ???????????????????????????????????????? | | ???????????????????????????????????????? | | ???????????????????????????????????????? | | ???????????????????????????????????????? | | ???????????????????????????????????????? | | ???????????????????????????????????????? | | ???????????????????????????????????????? | | ???????????????????????????????????????? | | ???????????????????????????????????????? | | ???????????????????????????????????????? | | ???????????????????????????????????????? | | ???????????###########?????????????????? | | ???????????# ####+####?????????? | | ???????????# ????????? | | ???????????# ????????? | | ???????????# ! ????????? | | ???????????+ g g ????????? | | ???????????# g@ ????????? | | ???????????# m%" " " " ????????? | | ???????????# m=" " " " ?????????? | | ???????????# " " " " #????????????? | | ???????????# " " " " ???????????????? | | ???????????# " " " " ???????????????? | | ???????????# " " " "????????????????? | | ???????????# " " " "????????????????? | | ???????????# ! " " " "????????????????? | | ???????????# " " " "????????????????? | | ???????????# ???????????????? | | ???????????# " " " " ???????????????? | | ???????????# " " " "????????????????? | | ???????????# " " " "????????????????? | | ???????????# " " " ?????????????????? | | ???????????# " " " ?????????????????? | | ???????????### " " "??????????????????? | | ?????????????? " " ???????????????????? | | ?????????????? "??????????????????????? | | ?????????????? "??????????????????????? | | ?????????????? ??????????????????????? | | ?????????????? "??????????????????????? | | ?????????????? "??????????????????????? | | ?????????????? ???????????????????????? | | ???????????????????????????????????????? | +----------------------------------------------------+ Best States ------------- Heat Dissipation 40 Energy Generation 11 Energy Capacity 100 Matter Stores 300 Matter Capacity 300 Sight Range 18 Terrain Scan Range 24 Terrain Scan Density 10 Armor Coverage 4800 Resistance: EM 90 Evasion (%) 50 Recoil Reduction 2 Item Schematics ----------------- None Robot Schematics ------------------ None Fabricated ------------ Nothing Repaired ---------- Nothing Studied --------- None Alien Tech Used ----------------- None Achievements -------------- Turtlemind Challenges ------------ None Game ------ Seed SpacefoldDecoyMicrothruster Manual? 0 Play Time 00:20:15 Cumulative 20.0 hours Start 2025.10.31 @ 02:22:46 End 2025.10.31 @ 02:43:37 Sessions 1 Manual Loads 0 Difficulty Rogue Special Mode None Game No. 34 Rogue 34 Adventurer 0 Explorer 0 Win Type - Total 2 Types 2/0/0/0/0/0/0/0/0/0 Lore% 35 Gallery% 26 Achievement% 25 Wizard Run 0 Options --------- Layout 1 ASCII 0 Keyboard 1 Movement Arrows Keybinds 0 Fullscreen 1 Font 16/SmallcapsGlow Map View 50x54 Zoom Use 0% Tactical HUD 1 Map Filters NONE Filters NONE Steam 1 RUN: 0cce17ca-34d7-4282-91b1-258d74ecdf2f